fUST/lending_fUST_20251212
["ID","MTS","AMOUNT","RATE_DAILY","PERIOD"]
[398287055,1765491063173,-562.55,0.00013698,2]
[398287056,1765491063183,-2576.59,0.00013698,2]
[398287057,1765491063193,-3480.09,0.00013698,2]
[398287058,1765491063203,-500.0,0.00013698,2]
[398287059,1765491063212,-500.0,0.00013698,2]
[398287060,1765491063222,-500.0,0.00013698,2]
[398287061,1765491063231,-500.0,0.00013698,2]
[398287062,1765491063241,-1279.59,0.00013698,2]
[398287063,1765491063251,-500.0,0.00013698,2]
[398287064,1765491063261,-500.0,0.00013698,2]
[398287065,1765491063271,-500.0,0.00013698,2]
[398287066,1765491063280,-501.66216375,0.00013698,2]
[398287067,1765491063290,-1023.09,0.00013698,2]
[398287068,1765491063300,-4044.64,0.00013698,2]
[398287069,1765491063309,-500.0,0.00013698,2]
[398287070,1765491063319,-1327.32,0.00013698,2]
[398287071,1765491063329,-500.0,0.00013698,2]
[398287072,1765491063339,-3418.32,0.00013698,2]
[398287073,1765491063350,-500.0,0.00013698,2]
[398287074,1765491063359,-500.0,0.00013698,2]
[398287075,1765491063369,-500.0,0.00013698,2]
[398287076,1765491063378,-500.0,0.00013698,2]
[398287077,1765491063389,-2329.0,0.00013698,2]
[398287078,1765491063399,-500.0,0.00013698,2]
[398287079,1765491063409,-2168.76,0.00013698,2]
[398287080,1765491063419,-500.0,0.00013698,2]
[398287081,1765491063428,-1724.75,0.00013698,2]
[398287082,1765491063438,-5564.14,0.00013698,2]
[398287083,1765491063448,-626.06,0.00013698,2]
[398287084,1765491063458,-3574.77,0.00013698,2]
[398287085,1765491063468,-500.0,0.00013698,2]
[398287086,1765491063478,-1021.25,0.00013698,2]
[398287087,1765491063488,-1995.09,0.00013698,2]
[398287088,1765491063499,-500.0,0.00013698,2]
[398287089,1765491063508,-500.0,0.00013698,2]
[398287090,1765491063518,-500.0,0.00013698,2]
[398287091,1765491063528,-500.0,0.00013698,2]
[398287092,1765491063538,-1168.52,0.00013698,2]
[398287093,1765491063548,-4186.9,0.00013698,2]
[398287094,1765491063558,-1699.31,0.00013698,2]
[398287095,1765491063568,-2136.82,0.00013698,2]
[398287096,1765491063578,-500.0,0.00013698,2]
[398287097,1765491063588,-500.0,0.00013698,2]
[398287098,1765491063598,-239.61343721,0.00013698,2]
[398287099,1765491063608,-822.4,0.00013698,2]
[398287100,1765491063619,-314.29868265,0.00013698,2]
[398287101,1765491063628,-500.0,0.00013698,2]
[398287102,1765491063638,-1132.60953863,0.00013698,2]
[398287103,1765491063648,-1115.45,0.00013698,2]
[398287104,1765491063659,-3155.66,0.00013698,2]
[398287105,1765491063669,-500.0,0.00013698,2]
[398287106,1765491063678,-523.26,0.00013698,2]
[398287107,1765491063688,-595.27,0.00013698,2]
[398287108,1765491063699,-3166.48,0.00013698,2]
[398287109,1765491063709,-715.29,0.00013698,2]
[398287110,1765491063719,-2155.6,0.00013698,2]
[398287111,1765491063729,-944.25,0.00013698,2]
[398287112,1765491063739,-1775.18,0.00013698,2]
[398287113,1765491063749,-1785.91,0.00013698,2]
[398287114,1765491063758,-500.0,0.00013698,2]
[398287115,1765491063770,-23114.45,0.00013698,2]
[398287116,1765491063780,-500.0,0.00013698,2]
[398287117,1765491063791,-1411.75,0.00013698,2]
[398287118,1765491063800,-4516.98,0.00013698,2]
[398287119,1765491063811,-500.0,0.00013698,2]
[398287120,1765491063821,-913.98,0.00013698,2]
[398287121,1765491063830,-1529.69,0.00013698,2]
[398287122,1765491063840,-5237.79,0.00013698,2]
[398287123,1765491063853,-28377.33,0.00013698,2]
[398287124,1765491063863,-500.0,0.00013698,2]
[398287125,1765491063873,-500.0,0.00013698,2]
[398287126,1765491063883,-1000.0,0.00013699,2]
[398287127,1765491063892,-500.0,0.00013699,2]
[398287128,1765491063902,-517.589936,0.00013699,2]
[398287129,1765491063912,-996.744994,0.00013699,2]
[398287130,1765491063922,-159.78920381,0.00013699,2]
[398287131,1765491063932,-501.60309284,0.00013699,2]
[398287132,1765491063942,-500.84106597,0.00013699,2]
[398287133,1765491063952,-500.86052987,0.00013699,2]
[398287134,1765491063962,-500.253888,0.00013699,2]
[398287135,1765491063972,-501.10718831,0.00013699,2]
[398287136,1765491063981,-345.68191262,0.00013699,2]
[398287137,1765491063991,-500.0,0.00013699,2]
[398287138,1765491064001,-500.0,0.00013699,2]
[398287139,1765491064011,-500.43874191,0.00013699,2]
[398287140,1765491064020,-500.30233164,0.00013699,2]
[398287141,1765491064029,-303.23176295,0.00013699,2]
[398287142,1765491064038,-500.0,0.00013699,2]
[398287143,1765491064047,-500.0,0.00013699,2]
[398287144,1765491064057,-500.0,0.00013699,2]
[398287145,1765491064066,-500.0,0.00013699,2]
[398287146,1765491064075,-500.0,0.00013699,2]
[398287147,1765491064084,-500.0,0.00013699,2]
[398287148,1765491064094,-500.0,0.00013699,2]
[398287149,1765491064103,-503.54499502,0.00013699,2]
[398287150,1765491064112,-164.65794352,0.00013699,2]
[398287151,1765491064122,-500.0,0.00013699,2]
[398287152,1765491064131,-500.0,0.00013699,2]
[398287153,1765491064140,-564.26708128,0.00013699,2]
[398287154,1765491064149,-500.0,0.00013699,2]
[398287155,1765491064158,-500.0,0.00013699,2]
[398287156,1765491064168,-160.77092652,0.00013699,2]
[398287157,1765491064177,-500.0,0.00013699,2]
[398287158,1765491064186,-500.0,0.00013699,2]
[398287159,1765491064196,-500.0,0.00013699,2]
[398287160,1765491064206,-500.0,0.00013699,2]
[398287161,1765491064215,-500.0,0.00013699,2]
[398287162,1765491064224,-500.0,0.00013699,2]
[398287163,1765491064234,-500.0,0.00013699,2]
[398287164,1765491064243,-500.0,0.00013699,2]
[398287165,1765491064252,-500.0,0.00013699,2]
[398287166,1765491064262,-500.0,0.00013699,2]
[398287167,1765491064271,-159.39360723,0.00013699,2]
[398287168,1765491064282,-500.0,0.00013699,2]
[398287169,1765491064292,-500.0,0.00013699,2]
[398287170,1765491064301,-500.0,0.00013699,2]
[398287171,1765491064310,-500.0,0.00013699,2]
[398287172,1765491064319,-415.8096951,0.00013699,2]
[398287173,1765491064328,-500.0,0.00013699,2]
[398287174,1765491064338,-500.0,0.00013699,2]
[398287175,1765491064347,-500.0,0.00013699,2]
[398287176,1765491064356,-500.0,0.00013699,2]
[398287177,1765491064366,-635.27681374,0.00013699,2]
[398287178,1765491064376,-306.9015511,0.00013699,2]
[398287179,1765491064386,-500.0,0.00013699,2]
[398287180,1765491064396,-159.05278881,0.00013699,2]
[398287181,1765491064405,-500.0,0.00013699,2]
[398287182,1765491064415,-500.0,0.00013699,2]
[398287183,1765491064425,-500.0,0.00013699,2]
[398287184,1765491064434,-500.0,0.00013699,2]
[398287185,1765491064444,-500.0,0.00013699,2]
[398287186,1765491064454,-500.0,0.00013699,2]
[398287187,1765491064463,-500.0,0.00013699,2]
[398287188,1765491064472,-500.0,0.00013699,2]
[398287189,1765491064482,-500.0,0.00013699,2]
[398287190,1765491064491,-500.0,0.00013699,2]
[398287191,1765491064501,-500.0,0.00013699,2]
[398287192,1765491064511,-454.89528703,0.00013699,2]
[398287193,1765491064519,-500.0,0.00013699,2]
[398287194,1765491064529,-177.67341524,0.00013699,2]
[398287195,1765491064539,-517.61291492,0.00013699,2]
[398287196,1765491064549,-500.0,0.00013699,2]
[398287197,1765491064558,-500.0,0.00013699,2]
[398287198,1765491064569,-500.0,0.00013699,2]
[398287199,1765491064579,-500.0,0.00013699,2]
[398287200,1765491064588,-500.0,0.00013699,2]
[398287201,1765491064598,-157.74563691,0.00013699,2]
[398287202,1765491064608,-500.0,0.00013699,2]
[398287203,1765491064617,-500.0,0.00013699,2]
[398287204,1765491064627,-500.0,0.00013699,2]
[398287205,1765491064636,-500.0,0.00013699,2]
[398287206,1765491064646,-163.28431994,0.00013699,2]
[398287207,1765491064656,-500.0,0.00013699,2]
[398287208,1765491064668,-500.0,0.00013699,2]
[398287209,1765491064677,-500.0,0.00013699,2]
[398287210,1765491064687,-500.0,0.00013699,2]
[398287211,1765491064696,-500.0,0.00013699,2]
[398287212,1765491064705,-500.0,0.00013699,2]
[398287213,1765491064715,-500.0,0.00013699,2]
[398287214,1765491064724,-500.0,0.00013699,2]
[398287215,1765491064734,-220.02912635,0.00013699,2]
[398287216,1765491064743,-500.0,0.00013699,2]
[398287217,1765491064752,-500.0,0.00013699,2]
[398287218,1765491064762,-500.0,0.00013699,2]
[398287219,1765491064775,-500.0,0.00013699,2]
[398287220,1765491064785,-500.0,0.00013699,2]
[398287221,1765491064794,-172.97940988,0.00013699,2]
[398287222,1765491064804,-523.59273408,0.00013699,2]
[398287223,1765491064814,-500.0,0.00013699,2]
[398287224,1765491064824,-500.0,0.00013699,2]
[398287225,1765491064833,-513.24864186,0.00013699,2]
[398287226,1765491064845,-500.0,0.00013699,2]
[398287227,1765491064854,-500.0,0.00013699,2]
[398287228,1765491064864,-500.0,0.00013699,2]
[398287229,1765491064874,-500.0,0.00013699,2]
[398287230,1765491064883,-500.0,0.00013699,2]
[398287231,1765491064892,-500.0,0.00013699,2]
[398287232,1765491064901,-500.0,0.00013699,2]
[398287233,1765491064911,-500.0,0.00013699,2]
[398287234,1765491064921,-533.61220242,0.00013699,2]
[398287235,1765491064931,-500.0,0.00013699,2]
[398287236,1765491064941,-500.0,0.00013699,2]
[398287237,1765491064951,-500.0,0.00013699,2]
[398287238,1765491064960,-500.0,0.00013699,2]
[398287239,1765491064970,-500.0,0.00013699,2]
[398287240,1765491064980,-500.0,0.00013699,2]
[398287241,1765491064990,-500.0,0.00013699,2]
[398287242,1765491065000,-500.0,0.00013699,2]
[398287243,1765491065009,-500.0,0.00013699,2]
[398287244,1765491065019,-500.0,0.00013699,2]
[398287245,1765491065028,-500.0,0.00013699,2]
[398287246,1765491065038,-500.0,0.00013699,2]
[398287247,1765491065048,-500.0,0.00013699,2]
[398287248,1765491065058,-500.0,0.00013699,2]
[398287249,1765491065068,-500.0,0.00013699,2]
[398287250,1765491065077,-500.0,0.00013699,2]
[398287251,1765491065087,-500.0,0.00013699,2]
[398287252,1765491065096,-500.0,0.00013699,2]
[398287253,1765491065106,-500.0,0.00013699,2]
[398287254,1765491065115,-187.22654867,0.00013699,2]
[398287255,1765491065124,-500.0,0.00013699,2]
[398287256,1765491065134,-166.76,0.000137,2]
[398287257,1765491065143,-250.0,0.000137,2]
[398287258,1765491065153,-250.0,0.000137,2]
[398287259,1765491065219,-250.0,0.000137,2]
[398287260,1765491065229,-250.0,0.000137,2]
[398287261,1765491065238,-250.0,0.000137,2]
[398287262,1765491065247,-194.2,0.000137,2]
[398287263,1765491065255,-3326.07919052,0.00013718,2]
[398287264,1765491065264,-688.49839244,0.00013718,2]
[398287265,1765491065274,-500.0,0.00013744,2]
[398287266,1765491065284,-500.0,0.00013767,2]
[398287267,1765491065294,-293.85068442,0.00013775,2]
[398287268,1765491065303,-824.65931539,0.00013799,2]
[398287269,1765491065312,-562.0,0.00013802,2]
[398287270,1765491065321,-645.0,0.00013802,2]
[398287271,1765491065331,-445.0,0.00013802,2]
[398287272,1765491065340,-561.0,0.00013802,2]
[398287273,1765491065350,-533.40161717,0.00013821,2]
[398287274,1765491065359,-1000.0,0.00013821,2]
[398287275,1765491065369,-1000.0,0.00013821,2]
[398287276,1765491065378,-1000.0,0.00013821,2]
[398287277,1765491065387,-1000.0,0.00013821,2]
[398287278,1765491065397,-1000.0,0.00013821,2]
[398287279,1765491065406,-1000.0,0.00013821,2]
[398287280,1765491065415,-1000.0,0.00013821,2]
[398287281,1765491065427,-1000.0,0.00013821,2]
[398287282,1765491065436,-1102.19035642,0.00013821,2]
[398287283,1765491065445,-1000.0,0.00013821,2]
[398287284,1765491065455,-312.41363097,0.00013821,2]
[398287285,1765491065464,-1000.0,0.00013821,2]
[398287286,1765491065474,-1000.0,0.00013821,2]
[398287287,1765491065483,-1000.0,0.00013821,2]
[398287288,1765491065492,-1000.0,0.00013821,2]
[398287289,1765491065501,-1000.0,0.00013821,2]
[398287290,1765491065510,-1000.0,0.00013821,2]
[398287291,1765491065520,-957.96658946,0.00013821,2]
[398287292,1765491065529,-1000.0,0.00013821,2]
[398287293,1765491065538,-1000.0,0.00013821,2]
[398287294,1765491065547,-351.4693299,0.00013821,2]
[398287295,1765491065557,-1000.0,0.00013821,2]
[398287296,1765491065566,-1000.0,0.00013821,2]
[398287297,1765491065576,-1000.0,0.00013821,2]
[398287298,1765491065585,-1000.0,0.00013821,2]
[398287299,1765491065594,-614.74053474,0.00013821,2]
[398287300,1765491065604,-1000.0,0.00013821,2]
[398287301,1765491065613,-491.81043733,0.00013821,2]
[398287302,1765491065623,-1000.0,0.00013821,2]
[398287303,1765491065633,-1000.0,0.00013821,2]
[398287304,1765491065643,-251.13751407,0.00013821,2]
[398287305,1765491065652,-384.78198961,0.00013821,2]
[398287306,1765491065662,-1000.0,0.00013821,2]
[398287307,1765491065671,-1000.0,0.00013821,2]
[398287308,1765491065681,-1000.0,0.00013821,2]
[398287309,1765491065691,-290.80385619,0.00013821,2]
[398287310,1765491065701,-1000.0,0.00013821,2]
[398287311,1765491065710,-1000.0,0.00013821,2]
[398287312,1765491065719,-463.54083133,0.00013821,2]
[398287313,1765491065729,-1000.0,0.00013821,2]
[398287314,1765491065738,-996.65277521,0.00013821,2]
[398287315,1765491065748,-518.00477076,0.00013821,2]
[398287316,1765491065758,-1000.0,0.00013821,2]
[398287317,1765491065768,-500.0,0.00013824,2]
[398287318,1765491065782,-900.0,0.00013834,2]
[398287319,1765491065791,-695.30247549,0.00013853,2]
[398287320,1765491065801,-727.86690166,0.00013863,2]
[398287321,1765491065811,-304.73383709,0.00013863,2]
[398287322,1765491065821,-500.0,0.00013892,2]
[398287323,1765491065832,-500.0,0.00013898,2]
[398287324,1765491065841,-193.97468373,0.00013931,9]
[398287325,1765491065853,-562.0,0.00013939,2]
[398287326,1765491065863,-645.0,0.00013939,2]
[398287327,1765491065872,-445.0,0.00013939,2]
[398287328,1765491065881,-561.0,0.00013939,2]
[398287329,1765491065894,-200.0,0.00013971,2]
[398287330,1765491065903,-221.64412071,0.00013971,2]
[398287331,1765491065913,-160.0,0.00013971,2]
[398287332,1765491065922,-200.0,0.00013971,2]
[398287333,1765491065931,-500.0,0.00013972,2]
[398287334,1765491065941,-500.0,0.00013972,2]
[398287335,1765491065950,-500.0,0.00013972,2]
[398287336,1765491065960,-500.0,0.00013972,2]
[398287337,1765491065970,-500.0,0.00013972,2]
[398287338,1765491065979,-1015.14,0.00013972,2]
[398287339,1765491065988,-1176.87,0.00013972,2]
[398287340,1765491065997,-654.1,0.00013972,2]
[398287341,1765491066007,-500.0,0.00013972,2]
[398287342,1765491066016,-520.76,0.00013972,2]
[398287343,1765491066025,-500.0,0.00013972,2]
[398287344,1765491066035,-500.0,0.00013972,2]
[398287345,1765491066044,-683.14,0.00013972,2]
[398287346,1765491066054,-500.0,0.00013972,2]
[398287347,1765491066063,-500.0,0.00013972,2]
[398287348,1765491066073,-500.0,0.00013972,2]
[398287349,1765491066083,-500.0,0.00013972,2]
[398287350,1765491066093,-481.10602322,0.00013972,2]
[398287351,1765491066102,-500.0,0.00013972,2]
[398287352,1765491066112,-500.0,0.00013972,2]
[398287353,1765491066121,-537.79,0.00013972,2]
[398287354,1765491066131,-500.0,0.00013972,2]
[398287355,1765491066140,-448.47661139,0.00013972,2]
[398287356,1765491066149,-500.0,0.00013972,2]
[398287357,1765491066158,-500.0,0.00013972,2]
[398287358,1765491066168,-500.0,0.00013972,2]
[398287359,1765491066177,-500.0,0.00013972,2]
[398287360,1765491066187,-500.0,0.00013972,2]
[398287361,1765491066196,-500.0,0.00013972,2]
[398287362,1765491066206,-500.0,0.00013972,2]
[398287363,1765491066215,-500.0,0.00013972,2]
[398287364,1765491066224,-500.0,0.00013972,2]
[398287365,1765491066234,-500.0,0.00013972,2]
[398287366,1765491066243,-578.67,0.00013972,2]
[398287367,1765491066252,-500.0,0.00013972,2]
[398287368,1765491066262,-500.0,0.00013972,2]
[398287369,1765491066271,-587.07,0.00013972,2]
[398287370,1765491066280,-596.96,0.00013972,2]
[398287371,1765491066289,-500.0,0.00013972,2]
[398287372,1765491066299,-500.0,0.00013972,2]
[398287373,1765491066308,-500.0,0.00013972,2]
[398287374,1765491066318,-500.0,0.00013972,2]
[398287375,1765491066327,-1052.1,0.00013972,2]
[398287376,1765491066337,-500.0,0.00013972,2]
[398287377,1765491066347,-463.29887523,0.00013972,2]
[398287378,1765491066357,-1642.34,0.00013972,2]
[398287379,1765491066367,-500.0,0.00013972,2]
[398287380,1765491066377,-500.0,0.00013972,2]
[398287381,1765491066386,-500.0,0.00013972,2]
[398287382,1765491066395,-500.0,0.00013972,2]
[398287383,1765491066404,-500.0,0.00013972,2]
[398287384,1765491066414,-500.0,0.00013972,2]
[398287385,1765491066423,-500.0,0.00013972,2]
[398287386,1765491066432,-500.0,0.00013972,2]
[398287387,1765491066441,-500.0,0.00013972,2]
[398287388,1765491066451,-500.0,0.00013972,2]
[398287389,1765491066462,-500.0,0.00013972,2]
[398287390,1765491066471,-500.0,0.00013972,2]
[398287391,1765491066481,-500.0,0.00013972,2]
[398287392,1765491066490,-1285.23,0.00013972,2]
[398287393,1765491066499,-534.23,0.00013972,2]
[398287394,1765491066508,-500.0,0.00013972,2]
[398287395,1765491066517,-607.27,0.00013972,2]
[398287396,1765491066526,-500.0,0.00013972,2]
[398287397,1765491066535,-500.0,0.00013972,2]
[398287398,1765491066544,-500.0,0.00013972,2]
[398287399,1765491066553,-500.0,0.00013972,2]
[398287400,1765491066563,-577.2,0.00013972,2]
[398287401,1765491066572,-560.39361137,0.00013972,2]
[398287402,1765491066581,-500.0,0.00013972,2]
[398287403,1765491066590,-500.0,0.00013972,2]
[398287404,1765491066601,-500.0,0.00013972,2]
[398287405,1765491066610,-500.0,0.00013972,2]
[398287406,1765491066620,-500.0,0.00013972,2]
[398287407,1765491066631,-500.0,0.00013972,2]
[398287408,1765491066650,-166.92669138,0.00013972,2]
[398287409,1765491066669,-565.22,0.00013972,2]
[398287410,1765491066680,-500.0,0.00013972,2]
[398287411,1765491066690,-500.0,0.00013972,2]
[398287412,1765491066700,-896.09,0.00013972,2]
[398287413,1765491066710,-500.0,0.00013972,2]
[398287414,1765491066720,-500.0,0.00013972,2]
[398287415,1765491066731,-500.0,0.00013972,2]
[398287416,1765491066741,-500.0,0.00013972,2]
[398287417,1765491066751,-500.0,0.00013972,2]
[398287418,1765491066761,-500.0,0.00013972,2]
[398287419,1765491066772,-500.0,0.00013972,2]
[398287420,1765491066786,-500.0,0.00013972,2]
[398287421,1765491066796,-500.0,0.00013972,2]
[398287422,1765491066806,-527.45,0.00013972,2]
[398287423,1765491066815,-238.60651782,0.00013972,2]
[398287424,1765491066825,-500.0,0.00013972,2]
[398287425,1765491066835,-673.31,0.00013972,2]
[398287426,1765491066844,-500.0,0.00013972,2]
[398287427,1765491066854,-500.0,0.00013972,2]
[398287428,1765491066864,-558.7,0.00013972,2]
[398287429,1765491066873,-500.0,0.00013972,2]
[398287430,1765491066882,-500.0,0.00013972,2]
[398287431,1765491066892,-500.0,0.00013972,2]
[398287432,1765491066901,-577.5,0.00013972,2]
[398287433,1765491066910,-500.0,0.00013972,2]
[398287434,1765491066919,-1296.07,0.00013972,2]
[398287435,1765491066928,-500.0,0.00013972,2]
[398287436,1765491066937,-863.48,0.00013972,2]
[398287437,1765491066947,-838.73,0.00013972,2]
[398287438,1765491066956,-500.0,0.00013972,2]
[398287439,1765491066966,-500.0,0.00013972,2]
[398287440,1765491066975,-500.0,0.00013972,2]
[398287441,1765491066984,-500.0,0.00013972,2]
[398287442,1765491066993,-500.0,0.00013972,2]
[398287443,1765491067003,-523.5,0.00013972,2]
[398287444,1765491067012,-500.0,0.00013972,2]
[398287445,1765491067021,-688.16,0.00013972,2]
[398287446,1765491067031,-500.0,0.00013972,2]
[398287447,1765491067040,-500.0,0.00013972,2]
[398287448,1765491067049,-500.0,0.00013972,2]
[398287449,1765491067059,-500.0,0.00013972,2]
[398287450,1765491067068,-417.45236905,0.00013972,2]
[398287451,1765491067078,-500.0,0.00013972,2]
[398287452,1765491067088,-1755.42,0.00013972,2]
[398287453,1765491067098,-500.0,0.00013972,2]
[398287454,1765491067106,-3134.98,0.00013972,2]
[398287455,1765491067116,-818.38,0.00013972,2]
[398287456,1765491067125,-500.0,0.00013972,2]
[398287457,1765491067135,-500.0,0.00013972,2]
[398287458,1765491067144,-500.0,0.00013972,2]
[398287459,1765491067153,-500.0,0.00013972,2]
[398287460,1765491067163,-500.0,0.00013972,2]
[398287461,1765491067172,-686.06,0.00013972,2]
[398287462,1765491067182,-1030.05,0.00013972,2]
[398287463,1765491067191,-500.0,0.00013972,2]
[398287464,1765491067200,-442.90833342,0.00013972,2]
[398287465,1765491067210,-500.0,0.00013972,2]
[398287466,1765491067219,-500.0,0.00013972,2]
[398287467,1765491067228,-500.0,0.00013972,2]
[398287468,1765491067238,-561.09,0.00013972,2]
[398287469,1765491067247,-500.0,0.00013972,2]
[398287470,1765491067256,-500.0,0.00013972,2]
[398287471,1765491067266,-1451.63,0.00013972,2]
[398287472,1765491067275,-500.0,0.00013972,2]
[398287473,1765491067285,-795.02,0.00013972,2]
[398287474,1765491067295,-500.0,0.00013972,2]
[398287475,1765491067304,-622.46,0.00013972,2]
[398287476,1765491067313,-500.0,0.00013972,2]
[398287477,1765491067323,-500.0,0.00013972,2]
[398287478,1765491067332,-1160.09,0.00013972,2]
[398287479,1765491067342,-500.0,0.00013972,2]
[398287480,1765491067351,-500.0,0.00013972,2]
[398287481,1765491067361,-457.4396233,0.00013972,2]
[398287482,1765491067370,-759.53,0.00013972,2]
[398287483,1765491067380,-500.0,0.00013972,2]
[398287484,1765491067389,-754.33,0.00013972,2]
[398287485,1765491067399,-500.0,0.00013972,2]
[398287486,1765491067408,-571.26,0.00013972,2]
[398287487,1765491067418,-500.0,0.00013972,2]
[398287488,1765491067427,-500.0,0.00013972,2]
[398287489,1765491067436,-500.0,0.00013972,2]
[398287490,1765491067446,-1048.47,0.00013972,2]
[398287491,1765491067455,-500.0,0.00013972,2]
[398287492,1765491067465,-563.96,0.00013972,2]
[398287493,1765491067474,-500.0,0.00013972,2]
[398287494,1765491067483,-500.0,0.00013972,2]
[398287495,1765491067493,-1039.07,0.00013972,2]
[398287496,1765491067503,-947.85,0.00013972,2]
[398287497,1765491067513,-512.32,0.00013972,2]
[398287498,1765491067522,-500.0,0.00013972,2]
[398287499,1765491067531,-813.08,0.00013972,2]
[398287500,1765491067542,-897.93,0.00013972,2]
[398287501,1765491067551,-500.0,0.00013972,2]
[398287502,1765491067560,-728.62,0.00013972,2]
[398287503,1765491067571,-2323.07,0.00013972,2]
[398287504,1765491067580,-500.0,0.00013972,2]
[398287505,1765491067590,-500.0,0.00013972,2]
[398287506,1765491067600,-3000.35,0.00013972,2]
[398287507,1765491067610,-500.0,0.00013972,2]
[398287508,1765491067619,-542.18,0.00013972,2]
[398287509,1765491067629,-500.0,0.00013972,2]
[398287510,1765491067639,-500.0,0.00013972,2]
[398287511,1765491067648,-866.89,0.00013972,2]
[398287512,1765491067659,-500.0,0.00013972,2]
[398287513,1765491067669,-1019.28,0.00013972,2]
[398287514,1765491067678,-3252.09,0.00013972,2]
[398287515,1765491067688,-500.0,0.00013972,2]
[398287516,1765491067698,-500.0,0.00013972,2]
[398287517,1765491067708,-500.0,0.00013972,2]
[398287518,1765491067717,-500.0,0.00013972,2]
[398287519,1765491067727,-1921.4,0.00013972,2]
[398287520,1765491067736,-500.0,0.00013972,2]
[398287521,1765491067745,-500.0,0.00013972,2]
[398287522,1765491067755,-559.56,0.00013972,2]
[398287523,1765491067765,-500.0,0.00013972,2]
[398287524,1765491067778,-736.04,0.00013972,2]
[398287525,1765491067790,-442.41500638,0.00013972,2]
[398287526,1765491067800,-500.0,0.00013972,2]
[398287527,1765491067810,-628.5,0.00013972,2]
[398287528,1765491067821,-1231.35,0.00013972,2]
[398287529,1765491067831,-500.0,0.00013972,2]
[398287530,1765491067841,-611.24,0.00013972,2]
[398287531,1765491067852,-500.0,0.00013972,2]
[398287532,1765491067861,-500.0,0.00013972,2]
[398287533,1765491067871,-571.89,0.00013972,2]
[398287534,1765491067881,-347.8385121,0.00013972,2]
[398287535,1765491067891,-500.0,0.00013972,2]
[398287536,1765491067900,-500.0,0.00013972,2]
[398287537,1765491067910,-500.0,0.00013972,2]
[398287538,1765491067918,-868.73,0.00013972,2]
[398287539,1765491067926,-500.0,0.00013972,2]
[398287540,1765491067932,-563.54,0.00013972,2]
[398287541,1765491067939,-474.2176682,0.00013972,2]
[398287542,1765491067946,-5015.56,0.00013972,2]
[398287543,1765491067953,-500.0,0.00013972,2]
[398287544,1765491067959,-500.0,0.00013972,2]
[398287545,1765491067966,-899.43,0.00013972,2]
[398287546,1765491067973,-500.0,0.00013972,2]
[398287547,1765491067980,-581.02,0.00013972,2]
[398287548,1765491067986,-755.72,0.00013972,2]
[398287549,1765491067994,-663.49,0.00013972,2]
[398287550,1765491068001,-500.0,0.00013972,2]
[398287551,1765491068010,-989.01,0.00013972,2]
[398287552,1765491068018,-2160.19,0.00013972,2]
[398287553,1765491068025,-10205.12,0.00013972,2]
[398287554,1765491068034,-500.0,0.00013972,2]